bitfinex-derivatives/quotes_ETHF0:USTF0_20220108
["timestamp","ask_amount","ask_price","bid_price","bid_amount"]
[1641665465298,2.00479,3007.0,3006.1,0.640787]
[1641665465497,1.5,3008.6,3006.1,0.640787]
[1641665465697,4.0,3008.0,3006.4,5.321537]
[1641665465898,1.5,3006.5,3006.0,2.00479]
[1641665466099,0.264788,3006.4,3006.0,2.00479]
[1641665466298,1.5,3006.1,3006.0,2.00479]
[1641665466500,0.264788,3006.1,3006.0,2.00479]
[1641665466700,0.264788,3006.1,3005.4,0.2]
[1641665466701,0.905575,3006.1,3005.4,0.2]
[1641665467900,1.12237797,3006.0,3005.4,0.2]
[1641665468102,1.66304677,3005.5,3005.4,0.2]
[1641665468301,0.08316,3005.9,3005.4,0.2]
[1641665468501,4.00958,3005.5,3005.4,0.2]
[1641665468700,5.67282869,3005.5,3005.4,0.2]
[1641665469103,4.274368,3005.5,3005.4,0.2]
[1641665469307,4.274368,3005.5,3004.3,2.20479]
[1641665469602,0.640787,3005.4,3003.8,0.2]
[1641665469814,1.66368313,3004.3,3003.8,0.2]
[1641665470102,0.264788,3004.3,3003.8,0.2]
[1641665470302,0.08319,3005.3,3003.8,0.840787]
[1641665470506,2.00479,3004.2,3003.8,0.840787]
[1641665470703,1.727978,3004.2,3003.8,0.2]
[1641665471205,1.66425904,3003.9,3001.8,0.2]
[1641665471407,0.788805,3003.8,3002.5,0.6725]
[1641665471607,0.08323,3003.8,3002.5,0.6725]
[1641665471807,0.03780874,3003.8,3003.3,0.264788]
[1641665472105,0.08323,3003.7,3001.8,0.2]
[1641665472305,0.12103874,3003.7,3001.8,0.2]
[1641665472504,4.00958,3002.9,3002.1,0.6725]
[1641665472704,4.00958,3002.9,3001.8,0.2]
[1641665473206,4.00958,3002.9,3002.8,0.4]
[1641665473407,0.08325,3003.5,3002.8,0.4]
[1641665473606,0.81985811,3004.7,3002.8,0.4]
[1641665474005,0.73660811,3004.7,3002.8,0.99903705]
[1641665474205,0.0377961,3004.6,3004.3,1.25489701]
[1641665474408,0.0377961,3004.6,3004.4,1.25489701]
[1641665474607,4.69205732,3005.2,3004.5,4.00958]
[1641665474805,4.69205732,3005.2,3004.5,4.650367]
[1641665475410,3.4501,3005.2,3004.5,4.650367]
[1641665475609,2.00479,3005.9,3004.5,4.650367]
[1641665475809,2.00479,3005.9,3004.6,2.667897]
[1641665476710,2.00479,3005.9,3005.0,2.00479]
[1641665476911,0.24510299,3005.6,3004.5,0.640787]
[1641665477109,0.24510299,3004.6,3004.2,1.66311038]
[1641665477323,0.905575,3004.5,3003.6,1.66342853]
[1641665477512,0.640787,3004.5,3003.6,1.66342853]
[1641665477712,0.24510299,3004.4,3002.7,0.5042]
[1641665477913,0.24510299,3004.4,3003.5,1.66347557]
[1641665478111,0.24510299,3004.4,3003.4,1.66354475]
[1641665478511,0.24510299,3004.0,3002.7,0.5042]
[1641665478711,2.00479,3004.0,3003.3,2.00479]
[1641665479013,2.24989299,3004.0,3003.7,1.66337042]
[1641665479312,2.00479,3004.0,3003.7,0.264788]
[1641665479911,0.24510299,3003.9,3003.3,2.00479]
[1641665480112,0.24510299,3003.4,3002.6,1.66394888]
[1641665480411,0.24510299,3002.7,3002.6,1.66394888]
[1641665480611,2.24989299,3002.7,3002.3,0.2]
[1641665480813,2.00479,3002.7,3002.3,0.2]
[1641665481111,0.24510299,3003.8,3002.3,0.2]
[1641665481312,0.08324,3005.2,3002.9,9.67163701]
[1641665481511,0.08324,3005.2,3003.2,8.17163701]
[1641665481711,13.84321,3005.4,3003.0,8.17163701]
[1641665481911,13.84321,3005.4,3002.3,0.2]
[1641665481912,1.82836298,3005.3,3002.4,9.67163701]
[1641665482113,13.76,3005.0,3002.3,0.2]
[1641665482412,13.76,3004.0,3002.3,0.2]
[1641665482611,4.00958,3002.4,3002.3,0.2]
[1641665483613,4.00958,3002.4,3002.3,0.464788]
[1641665484412,1.66434491,3003.6,3002.3,0.464788]
[1641665484615,2.00479,3003.0,3002.3,2.469578]
[1641665484815,2.00479,3003.0,3002.9,11.49999999]
[1641665485016,2.00479,3003.0,3002.9,0.264788]
[1641665485819,0.08325,3004.5,3002.9,13.42851264]
[1641665485820,1.6639212,3004.4,3002.9,13.42851264]
[1641665486015,0.08323,3005.4,3002.9,0.264788]
[1641665486315,0.08323,3005.4,3003.9,11.49999999]
[1641665486514,15.08326,3005.5,3003.0,5.326231]
[1641665486714,2.00479,3004.0,3003.1,2.00479]
[1641665486915,2.00479,3004.0,3003.3,11.49999999]
[1641665487115,2.00479,3004.0,3003.4,12.40557499]
[1641665487316,2.00479,3004.0,3003.9,11.49999999]
[1641665487515,1.84249,3004.0,3003.9,11.76478799]
[1641665487717,1.84249,3004.0,3003.9,0.264788]
[1641665487917,1.84249,3004.0,3003.1,2.00479]
[1641665488115,1.84249,3004.0,3002.8,11.49999999]
[1641665488515,1.84249,3004.0,3003.2,11.49999999]
[1641665488716,1.84249,3004.0,3003.1,11.49999999]
[1641665488717,2.00479,3003.4,3003.1,11.49999999]
[1641665488915,2.00479,3003.4,3003.3,11.49999999]
[1641665489316,2.00479,3003.4,3003.3,11.76478799]
[1641665491323,2.00479,3003.6,3003.0,1.49999999]
[1641665491521,2.00479,3003.6,3002.9,3.16380768]
[1641665491724,2.00479,3003.6,3002.9,1.66380769]
[1641665491921,1.54561051,3003.5,3002.0,0.99933156]
[1641665492120,1.54561051,3003.5,3001.3,0.2]
[1641665492324,13.84326,3003.4,3001.3,0.2]
[1641665492722,2.00479,3002.1,3001.4,2.00479]
[1641665493023,0.08326,3003.4,3001.4,2.00479]
[1641665493024,0.08326,3003.4,3001.8,1.5]
[1641665493223,2.00479,3003.6,3002.1,0.99927627]
[1641665493622,2.00479,3003.6,3002.9,1.5]
[1641665493822,2.00479,3003.6,3003.0,0.264788]
[1641665494023,2.00479,3003.6,3003.0,5.592349]
[1641665494325,0.264788,3003.5,3003.0,0.264788]
[1641665494623,0.264788,3003.5,3003.0,2.00479]
[1641665494825,0.264788,3003.5,3003.0,2.645577]
[1641665495026,2.00479,3003.6,3003.3,0.99889426]
[1641665495423,2.00479,3003.6,3003.0,2.645577]
[1641665495623,2.00479,3003.6,3003.0,2.910365]
[1641665496224,2.369166,3003.6,3003.0,2.910365]
[1641665496424,0.264788,3003.5,3002.7,2.00479]
[1641665496624,0.264788,3003.5,3002.8,0.264788]
[1641665496827,0.264788,3003.5,3002.9,0.640787]
[1641665497427,0.264788,3003.5,3002.9,0.905575]
[1641665497828,0.264788,3003.5,3002.7,2.00479]
[1641665498026,4.00958,3003.6,3002.8,0.264788]
[1641665498229,2.00479,3003.6,3003.3,1.66344789]
[1641665498428,0.08323,3005.6,3003.8,0.99872188]
[1641665498628,2.00479,3004.9,3004.2,2.00479]
[1641665498828,1.66363331,3004.7,3003.5,0.9988329]
[1641665499029,0.08321,3004.7,3002.7,0.99909562]
[1641665499229,1.66383537,3004.3,3002.7,0.99909562]
[1641665499430,1.74696018,3004.5,3002.9,1.66366652]
[1641665499830,1.66386859,3004.2,3002.7,0.99909562]
[1641665500031,1.66425627,3003.5,3002.1,1.19914564]
[1641665500232,1.66454714,3003.0,3001.8,0.83864376]
[1641665500432,1.66482149,3002.5,3001.8,0.83864376]
[1641665500634,0.264788,3002.4,3001.8,2.84343376]
[1641665500838,0.629164,3002.4,3001.8,2.84343376]
[1641665501034,0.629164,3002.4,3001.9,0.640787]
[1641665501233,1.222004,3003.1,3001.8,2.84343376]
[1641665501433,1.6649878,3002.2,3001.8,2.84343376]
[1641665501632,1.6649878,3002.2,3001.8,2.00479]
[1641665502033,1.34929651,3002.1,3001.8,2.00479]
[1641665502233,1.34929651,3002.1,3001.5,2.00479]
[1641665503235,1.34929651,3002.1,3001.3,0.2]
[1641665503437,1.66532053,3001.6,3001.3,0.2]
[1641665503835,1.66532054,3001.9,3000.8,0.2]
[1641665503836,1.66518188,3001.9,3000.8,0.2]
[1641665504035,0.08329,3001.8,3000.9,0.905575]
[1641665504235,0.08329,3001.8,3001.6,0.361256]
[1641665504437,0.08328,3002.4,3001.7,0.264788]
[1641665504638,2.00479,3001.9,3001.2,2.00479]
[1641665504836,2.00479,3001.9,3000.8,0.2]
[1641665505036,1.66536491,3001.5,3000.8,0.2]
[1641665505236,0.0833,3001.4,3000.8,0.2]
[1641665505438,0.0833,3001.8,3000.8,0.2]
[1641665506438,0.0833,3001.8,3000.8,0.561256]
[1641665506639,2.00479,3001.1,3000.8,0.561256]
[1641665506837,2.00479,3001.9,3001.0,0.361256]
[1641665507039,0.87622553,3002.3,3001.8,0.361256]
[1641665507242,0.08329,3003.7,3002.2,0.361256]
[1641665507441,0.08329,3003.7,3002.4,0.361256]
[1641665507638,0.73146295,3004.5,3002.4,0.361256]
[1641665507840,0.73146295,3004.5,3000.9,35.4095]
[1641665507841,13.76,3003.7,3000.9,35.4095]
[1641665508040,0.08326,3003.7,3002.4,0.361256]
[1641665508239,0.6725,3003.7,3002.4,0.361256]
[1641665508440,0.08323,3004.4,3002.1,0.99927821]
[1641665508643,2.00479,3003.4,3002.6,2.00479]
[1641665508841,2.00479,3003.7,3002.7,0.905575]
[1641665509054,2.00479,3003.7,3003.3,0.361256]
[1641665509540,2.00479,3003.7,3002.7,0.640787]
[1641665509739,2.00479,3003.7,3003.3,0.361256]
[1641665509939,1.83459,3003.7,3003.6,0.361256]
[1641665510350,1.83459,3003.7,3003.6,0.626044]
[1641665510543,1.65149,3003.7,3003.6,0.626044]
[1641665510941,1.62159,3003.7,3003.6,0.626044]
[1641665511141,1.62159,3003.7,3003.3,0.264788]
[1641665511340,1.62159,3003.7,3001.0,10.10343176]
[1641665511541,3.12159,3003.7,3001.0,10.10343176]
[1641665511942,1.62159,3003.7,3001.1,0.73902568]
[1641665512142,1.62159,3003.7,3003.1,1.66358072]
[1641665512342,0.264788,3003.6,3003.1,1.66358072]
[1641665512842,2.00479,3003.2,3002.9,1.66365268]
[1641665513044,2.269578,3003.2,3002.8,0.640787]
[1641665513242,2.269578,3003.2,3002.4,2.00479]
[1641665513444,2.139678,3003.2,3002.4,2.00479]
[1641665513642,1.168978,3003.2,3002.4,2.00479]
[1641665514043,0.90419,3003.2,3002.4,2.00479]
[1641665514243,0.41639,3003.2,3002.9,1.66364991]
[1641665514445,0.08323,3005.0,3002.4,2.00479]
[1641665514645,1.5,3005.1,3005.0,0.002]
[1641665514847,1.764788,3005.1,3005.0,0.002]
[1641665515344,2.405575,3005.1,3005.0,0.002]
[1641665515547,2.140787,3005.1,3005.0,0.002]
[1641665515746,0.2,3005.3,3005.0,0.002]
[1641665515946,1.78319,3005.8,3005.0,0.002]
[1641665515947,0.075788,3005.4,3005.0,0.002]
[1641665516247,0.075788,3005.4,3003.5,2.00479]
[1641665516446,0.075788,3005.4,3004.3,1.66288084]
[1641665516648,0.075788,3005.4,3004.4,2.00479]
[1641665516649,2.00479,3005.1,3004.4,2.00479]
[1641665516847,0.2,3005.8,3004.9,0.99836804]
[1641665517047,1.29650151,3005.8,3004.4,7.329515]
[1641665517249,1.5,3004.5,3003.6,1.66329019]
[1641665517449,1.5,3004.8,3003.6,1.66329019]
[1641665517650,1.5,3004.2,3003.2,0.99891538]
[1641665517848,1.5,3004.8,3003.2,0.99891538]
[1641665518248,1.5,3004.3,3003.2,0.99891538]
[1641665518449,1.58323,3005.7,3003.2,0.99891538]
[1641665518750,1.58323,3005.7,3002.8,2.00479]
[1641665518751,2.00479,3003.5,3002.8,2.00479]
[1641665518948,2.00479,3003.5,3002.9,0.829787]
[1641665518949,0.905575,3003.4,3002.9,0.829787]
[1641665519251,2.00479,3003.5,3002.9,0.829787]
[1641665519650,1.5,3004.8,3002.9,0.829787]
[1641665519853,1.5,3004.8,3003.6,0.99877266]
[1641665520058,1.61399794,3004.8,3003.6,0.99877266]
[1641665520350,1.5,3004.6,3003.6,0.99877266]
[1641665520750,1.5,3004.6,3004.4,2.00479]
[1641665521149,0.75957494,3005.1,3004.4,2.00479]
[1641665521352,0.264788,3005.0,3004.4,3.50479]
[1641665521551,13.50755494,3006.3,3004.4,2.19379]
[1641665521753,1.66303847,3005.7,3004.7,1.5]
[1641665522154,1.66303847,3005.7,3004.4,2.00479]
[1641665522353,1.66329849,3005.3,3004.4,2.00479]
[1641665522556,1.66329849,3005.3,3003.3,1.76669848]
[1641665522557,23.75999999,3005.5,3003.3,0.1034]
[1641665522753,2.00479,3004.1,3003.3,2.10819]
[1641665522953,2.00479,3004.1,3003.4,0.829787]
[1641665523156,2.00479,3004.1,3003.7,1.5]
[1641665523355,2.00479,3004.1,3003.4,0.640787]
[1641665523554,2.00479,3004.1,3003.8,0.189]
[1641665523755,1.66332892,3005.2,3004.0,1.5]
[1641665523957,1.651,3006.4,3004.3,1.5]
[1641665523958,0.08319,3006.3,3004.3,1.5]
[1641665524155,0.08319,3006.3,3003.4,0.99883616]
[1641665524156,13.76,3005.8,3003.4,0.99883616]
[1641665524455,1.66342022,3005.0,3003.3,3.77161022]
[1641665524654,2.00479,3004.1,3003.3,2.10819]
[1641665524854,0.264788,3004.0,3003.3,2.61779]
[1641665525054,2.62078395,3004.0,3003.3,0.613]
[1641665525255,0.956788,3004.0,3003.3,0.613]
[1641665525554,1.66438923,3003.4,3002.5,1.11126356]
[1641665525757,1.6647134,3002.7,3002.5,1.11126356]
[1641665525955,1.9297758,3002.6,3002.5,1.11126356]
[1641665526155,6.9937028,3002.6,3002.3,1.58907945]
[1641665526355,6.9937028,3002.6,3001.7,2.6953826]
[1641665526356,13.84326,3002.5,3001.7,2.6953826]
[1641665526655,4.00958,3002.1,3001.8,2.79672252]
[1641665526858,17.76958,3002.1,3001.8,2.79672252]
[1641665527056,0.08326,3002.0,3001.8,2.79672252]
[1641665527457,0.972,3001.9,3001.8,2.59672252]
[1641665527657,1.05528,3001.9,3001.8,0.49]
[1641665527956,1.05528,3001.9,3000.5,2.00479]
[1641665527957,1.05528,3001.9,3000.8,0.2]
[1641665528156,17.76958,3002.1,3000.8,0.2]
[1641665528157,0.08328,3001.8,3000.8,0.2]
[1641665528359,13.76,3001.8,3000.8,0.2]
[1641665528557,0.08329,3001.7,3000.8,0.2]
[1641665528756,17.76958,3001.4,3000.8,0.2]
[1641665528956,4.09287,3001.4,3001.1,0.640787]
[1641665529156,2.00479,3001.4,3001.3,1.7]
[1641665529356,0.08329,3002.5,3001.3,3.36456654]
[1641665529560,0.08328,3002.9,3001.9,1.5]
[1641665530056,2.42921229,3004.1,3001.3,0.2]
[1641665530057,1.33742905,3002.8,3001.3,0.2]
[1641665530258,13.76,3002.6,3001.3,0.2]
[1641665530458,0.08326,3002.5,3001.3,0.2]
[1641665530660,4.00958,3001.4,3001.3,0.2]
[1641665530861,17.76958,3001.4,3001.3,0.2]
[1641665531059,18.80834668,3001.4,3001.3,0.2]
[1641665531258,1.03876668,3001.4,3001.3,0.2]
[1641665531858,2.70428969,3001.4,3001.3,0.2]
[1641665532059,16.54757969,3001.4,3001.3,0.2]
[1641665532260,14.88205668,3001.4,3000.8,0.2]
[1641665532459,0.0833,3001.3,3000.8,0.2]
[1641665532760,3.04355668,3001.4,3001.2,1.5]
[1641665533158,3.04355668,3001.4,3001.3,0.264788]
[1641665533361,4.70906582,3001.4,3000.8,0.0001]
[1641665533560,3.04355668,3001.4,3000.8,0.640887]
[1641665533759,1.03876668,3001.4,3001.3,1.5]
[1641665533960,5.0,3001.9,3000.8,0.640887]
[1641665534358,5.0,3001.9,3001.8,1.5]
[1641665534559,0.08329,3002.2,3001.8,1.764788]
[1641665534758,0.73809191,3002.5,3002.1,5.50958]
[1641665534958,0.73809191,3002.5,3002.4,1.5]
[1641665535158,0.73809191,3002.5,3002.4,3.0]
[1641665535159,0.55169191,3002.5,3002.4,3.0]
[1641665535359,2.42921229,3003.6,3002.4,3.0]
[1641665535563,2.42921229,3003.6,3003.5,1.5]
[1641665535863,2.32721325,3003.6,3003.5,1.764788]
[1641665536061,2.32721325,3003.6,3003.5,1.5]
[1641665536262,2.32721325,3003.6,3002.4,1.66380492]
[1641665536461,2.32721325,3003.6,3002.6,1.5]
[1641665536462,13.76,3003.5,3002.6,1.5]
[1641665536663,0.75575,3003.9,3002.6,1.5]
[1641665536864,2.00479,3003.4,3002.7,2.00479]
[1641665537064,1.66400426,3004.0,3003.3,1.5]
[1641665537264,1.66400426,3004.0,3003.8,1.5]
[1641665537563,1.66381876,3004.3,3003.7,0.264788]
[1641665537863,1.66381876,3004.3,3003.7,0.640787]
[1641665538065,2.988822,3004.3,3003.7,0.640787]
[1641665538264,2.988822,3004.3,3002.7,3.50479]
[1641665538467,16.748822,3004.3,3002.6,1.66381876]
[1641665538665,1.66472449,3002.7,3001.6,1.12343266]
[1641665538866,5.67430449,3002.7,3001.6,3.12822266]
[1641665539064,3.66951449,3002.7,3002.5,1.5]
[1641665539265,1.66472449,3002.7,3002.6,1.5]
[1641665539463,1.66472449,3002.7,3001.6,4.62822266]
[1641665539664,1.66472449,3002.7,3002.6,1.5]
[1641665539864,0.6725,3003.7,3002.6,1.764788]
[1641665540066,0.6725,3003.7,3003.6,1.5]
[1641665540265,0.08323,3004.9,3003.6,1.764788]
[1641665540466,1.22825429,3005.0,3003.6,1.764788]
[1641665540666,1.22825429,3005.0,3004.9,1.5]
[1641665541067,1.22825429,3005.0,3004.1,0.50958]
[1641665541267,1.22825429,3005.0,3003.1,10.98867608]
[1641665541468,3.47869515,3005.2,3003.1,10.98867608]
[1641665541666,0.08321,3005.1,3003.1,10.98867608]
[1641665542066,1.5,3004.8,3003.1,10.98867608]
[1641665542268,0.08322,3004.7,3003.1,10.98867608]
[1641665542465,0.08322,3004.7,3003.4,1.5]
[1641665542666,0.08322,3004.7,3003.5,1.5]
[1641665542667,3.3102503,3004.3,3003.5,1.5]
[1641665542866,3.3102503,3004.3,3004.1,2.00479]
[1641665543065,2.00479,3005.2,3004.1,2.00479]
[1641665543265,3.30956765,3004.9,3004.1,2.00479]
[1641665543668,3.31027784,3004.2,3004.1,2.00479]
[1641665543868,2.00479,3005.2,3004.1,2.00479]
[1641665544270,1.29761742,3005.1,3004.1,2.00479]
[1641665545872,2.96084951,3005.1,3004.3,1.16111768]
[1641665546071,2.96084951,3005.1,3004.4,0.905575]
[1641665546469,1.66335935,3004.9,3004.3,1.16111768]
[1641665546669,1.29761742,3005.1,3003.0,1.16160937]
[1641665546871,2.00479,3003.7,3003.0,1.16160937]
[1641665547069,2.00479,3003.7,3002.8,2.50209]
[1641665547270,2.00479,3003.7,3003.1,11.25346408]
[1641665547470,2.00479,3004.0,3003.1,11.25346408]
[1641665547872,0.6725,3004.9,3003.4,1.14028369]
[1641665548074,1.66369143,3004.3,3003.4,1.14028369]
[1641665548474,1.5,3004.4,3003.1,10.98867608]
[1641665548673,1.5,3004.4,3003.1,7.608e-05]
[1641665548876,1.66448896,3003.2,3003.1,7.608e-05]
[1641665550777,13.76,3003.1,3001.6,1.68538056]
[1641665550976,13.76,3003.1,3001.2,1.12330394]
[1641665550977,8.84326,3003.1,3001.2,1.12330394]
[1641665551176,1.5,3002.5,3001.2,1.12330394]
[1641665551380,1.66540928,3001.3,3001.2,1.12330394]
[1641665551576,8.84326,3003.1,3001.2,2.02887894]
[1641665551793,1.5,3002.9,3001.2,1.38809194]
[1641665551976,0.08326,3002.8,3001.2,1.38809194]
[1641665552176,1.66488247,3002.2,3001.2,1.38809194]
[1641665552376,0.08326,3003.0,3001.2,0.264788]
[1641665552577,0.08326,3003.1,3001.2,0.264788]
[1641665552780,2.00479,3002.2,3001.5,2.00479]
[1641665552981,2.00479,3002.2,3001.6,0.264788]
[1641665553578,1.66507652,3001.8,3001.6,0.264788]
[1641665553982,1.66507652,3001.8,3001.5,2.00479]
[1641665554182,1.66527616,3001.6,3001.2,2.00479]
[1641665554384,1.66527616,3001.6,3001.2,2.269578]
[1641665554981,1.66527616,3001.6,3001.2,2.00479]
[1641665555583,1.62285699,3001.5,3001.2,2.00479]
[1641665556587,1.62285699,3001.5,3000.8,0.0001]
[1641665556782,1.66568946,3000.9,3000.8,0.0001]
[1641665556981,0.0019,3000.8,3000.6,2.645577]
[1641665557182,0.0019,3000.8,3000.6,2.00479]
[1641665557583,1.66567004,3000.7,3000.6,2.00479]
[1641665557881,2.94532238,3000.8,3000.6,2.00479]
[1641665558085,15.42591978,3000.7,3000.4,0.5114]
[1641665558282,0.0833,3000.6,3000.4,0.5114]
[1641665558482,0.0833,3000.6,3000.1,0.84267049]
[1641665558881,2.00479,3000.3,3000.1,1.34787049]
[1641665559783,13.76,3000.5,3000.1,0.5052]
[1641665559981,13.76,3000.5,3000.0,10.640787]
[1641665559982,13.76,3000.5,3000.0,10.4937]
[1641665560181,0.08332,3000.4,3000.3,1.5]
[1641665560381,0.08332,3001.7,3000.3,1.5]
[1641665560581,0.74051635,3002.5,3000.5,1.5]
[1641665560582,3.23357154,3001.9,3000.5,1.5]
[1641665560782,3.23357154,3001.9,3001.4,2.00479]
[1641665561183,3.23357154,3001.9,3001.4,9e-05]
[1641665561383,1.49512,3000.2,3000.0,10.4918]
[1641665561586,2.00479,3002.1,3000.1,0.264788]
[1641665561784,2.08812,3002.4,3000.1,0.264788]
[1641665561785,2.00479,3002.4,3000.1,1.57955745]
[1641665561985,1.82479,3002.4,3000.4,0.09603563]
[1641665562183,1.5,3003.2,3001.5,1.63950508]
[1641665562385,0.74051635,3003.3,3001.5,1.63950508]
[1641665562587,0.74051635,3003.3,3001.9,1.66410118]
[1641665562786,2.74530635,3003.3,3002.6,2.00479]
[1641665562987,0.264788,3003.2,3002.6,2.00479]
[1641665563186,0.214788,3003.2,3002.7,5.328094]
[1641665563387,3.50479,3003.3,3002.7,0.05]
[1641665563587,0.264788,3003.2,3000.7,14.60267049]
[1641665563786,0.264788,3003.2,3001.6,1.66410117]
[1641665563787,1.92911629,3003.2,3001.6,1.66410117]
[1641665564188,0.6725,3003.1,3001.5,3.30383337]
[1641665564389,1.66457762,3002.7,3001.5,1.63950508]
[1641665564586,1.66479655,3002.3,3001.5,1.63950508]
[1641665564786,1.28398313,3003.3,3000.7,0.84267049]
[1641665564787,2.00479,3001.9,3001.6,0.05]
[1641665564989,2.00479,3001.9,3001.5,0.640787]
[1641665565187,2.00479,3001.9,3001.2,2.00479]
[1641665565386,2.00479,3001.9,3001.3,0.05]
[1641665565588,1.5,3001.8,3001.2,2.00479]
[1641665565791,1.764788,3001.7,3001.2,2.00479]
[1641665566087,0.264788,3001.7,3001.2,2.05479]
[1641665566387,0.264788,3001.7,3001.2,0.05]
[1641665566587,1.5,3001.3,3001.1,0.84267049]
[1641665566794,3.50479,3001.3,3000.9,1.1724175]
[1641665567097,3.50479,3001.3,3000.9,0.05]
[1641665567295,1.5,3001.0,3000.8,0.640787]
[1641665567895,3.50479,3001.3,3000.8,0.690787]
[1641665568596,2.00479,3001.3,3000.8,0.690787]
[1641665568798,5.08017871,3001.3,3000.8,0.690787]
[1641665569198,1.764788,3001.2,3000.5,2.00479]
[1641665569397,5.08017871,3001.3,3000.6,0.690787]
[1641665569600,1.5,3002.3,3000.6,0.690787]
[1641665569800,1.31336479,3001.9,3001.0,1.66457208]
[1641665570000,1.5,3002.9,3001.1,1.06969004]
[1641665570201,1.5,3002.9,3001.3,1.66443909]
[1641665570404,1.66442801,3003.0,3001.3,1.66443909]
[1641665570601,1.5,3003.2,3001.7,1.03587091]
[1641665570802,2.00479,3002.6,3001.9,2.00479]
[1641665571004,1.50008,3002.9,3002.5,0.99914662]
[1641665571302,1.50008,3002.9,3001.6,0.20888168]
[1641665571303,1.764868,3002.9,3001.6,0.20888168]
[1641665571711,1.6645139,3002.8,3001.2,5.0]
[1641665571904,1.50008,3002.9,3001.2,5.0]
[1641665572109,1.66461087,3002.6,3001.2,5.0]
[1641665572505,2.33711087,3002.6,3001.2,5.0]
[1641665572908,2.00479,3001.8,3001.2,5.0]
[1641665573110,0.264788,3001.7,3001.2,5.0]
[1641665573305,1.66519574,3001.6,3001.2,5.0]
[1641665573506,2.00479,3002.1,3001.2,5.0]
[1641665574912,2.00479,3002.1,3001.4,2.00479]
[1641665575209,0.214788,3002.0,3001.4,2.00479]
[1641665575609,0.214788,3002.0,3001.2,5.0]
[1641665576011,1.66525398,3001.7,3001.2,5.0]
[1641665576210,0.214788,3001.6,3001.2,5.0]
[1641665576411,0.28967579,3005.2,3003.4,1.19860956]
[1641665576610,0.67,3006.3,3004.7,0.99840588]
[1641665576810,0.20043181,3005.6,3005.2,4.00958]
[1641665577010,2.30161518,3005.9,3005.2,2.34393918]
[1641665577410,4.2101987,3006.2,3005.3,3.761997]
[1641665577411,1.73299884,3005.7,3005.3,3.761997]
[1641665577610,3.32399754,3006.2,3005.3,2.261997]
[1641665577811,3.23856556,3006.2,3005.3,3.761997]
[1641665578013,3.69089609,3006.6,3006.1,1.5]
[1641665578212,3.69089609,3006.6,3006.5,1.66152425]
[1641665578412,3.46999609,3006.6,3006.5,0.640787]
[1641665578812,2.00479,3008.1,3006.5,7.57135]
[1641665579011,2.00479,3008.1,3007.2,1.66149664]
[1641665579211,6.2373314,3009.1,3007.7,1.66110473]
[1641665579414,1.45344445,3008.6,3007.7,1.66110473]
[1641665579614,2.16145268,3008.6,3007.7,1.66110473]
[1641665579816,2.16145268,3008.6,3007.8,2.920983]
[1641665580416,2.16145268,3008.6,3008.2,1.66078472]
[1641665580618,2.16145268,3008.6,3008.2,1.92557272]
[1641665580917,0.2,3009.4,3008.6,0.99713436]
[1641665581217,0.1106,3009.9,3008.7,0.08308]
[1641665581423,1.22018,3010.9,3008.8,0.27982]
[1641665581617,1.22018,3010.9,3008.7,1.991976]
[1641665581618,1.22018,3010.9,3009.4,1.66037385]
[1641665581819,1.66037385,3011.1,3009.4,1.66037385]
[1641665582018,0.2,3011.4,3007.2,4.0]
[1641665582220,0.2,3011.4,3007.5,4.0]
[1641665582420,1.5,3010.2,3007.6,0.08307]
[1641665582619,1.5,3010.7,3007.6,17.84307]
[1641665582822,1.5,3010.7,3010.3,2.00479]
[1641665583020,0.2,3011.4,3010.4,0.640787]
[1641665583220,0.2,3011.4,3010.3,2.00479]
[1641665583420,0.2,3011.4,3010.3,3.66437852]
[1641665583622,0.2,3011.9,3010.3,2.00479]
[1641665583823,1.5,3012.9,3011.3,1.6589718]
[1641665584026,1.5,3013.3,3010.4,5.396682]
[1641665584222,1.5,3013.6,3010.4,19.156682]
[1641665584422,1.65875166,3013.5,3012.0,1.65861685]
[1641665584625,1.5,3013.3,3012.1,0.08298]
[1641665584825,1.65836654,3014.2,3013.2,4.00958]
[1641665585028,1.5,3014.1,3013.2,4.00958]
[1641665585224,1.5,3013.3,3013.2,4.00958]
[1641665585724,3.0,3013.3,3010.7,0.08296]
[1641665585925,1.7,3013.9,3010.7,0.08296]
[1641665586123,1.5,3012.5,3010.7,0.08296]
[1641665586324,1.5,3012.5,3010.5,7.13]
[1641665586525,1.5,3013.2,3010.8,5.311996]
[1641665586827,0.2,3013.9,3013.1,4.00958]
[1641665587025,1.7,3013.4,3013.1,4.00958]
[1641665587226,0.2,3013.4,3013.1,4.00958]
[1641665587427,0.2,3013.4,3013.1,5.66759184]
[1641665587627,0.2,3013.4,3013.1,4.00958]
[1641665588024,0.2,3014.9,3013.1,4.00958]
[1641665588225,1.3936,3014.8,3013.2,5.309881]
[1641665588424,0.2,3014.9,3013.7,0.99544769]
[1641665588425,0.0277,3014.4,3013.7,0.99544769]
[1641665588627,0.2,3014.9,3013.7,0.99544769]
[1641665588826,0.2,3014.9,3014.8,4.00958]
[1641665589326,0.0296,3014.9,3014.8,11.61413435]
[1641665589727,0.2,3015.9,3014.8,11.61413435]
[1641665590135,0.2,3015.9,3015.7,0.79477765]
[1641665590429,0.264788,3016.0,3014.8,10.97334735]
[1641665590630,0.2947,3016.7,3014.8,5.66628435]
[1641665590831,0.2,3016.9,3016.6,5.66563412]
[1641665591028,1.5,3018.2,3016.6,4.00958]
[1641665591227,0.2947,3019.2,3016.6,4.00958]
[1641665591428,0.4978,3022.9,3016.6,4.00958]
[1641665591429,0.2,3023.0,3017.2,11.49999999]